fUST/lending_fUST_20250729
["ID","MTS","AMOUNT","RATE_DAILY","PERIOD"]
[375819088,1753752673716,-460.97,0.00021095,2]
[375819090,1753752673726,-492.33,0.00021095,2]
[375819092,1753752673735,-460.0,0.00021095,2]
[375819094,1753752673747,-460.0,0.00021095,2]
[375819096,1753752673757,-318.8391666,0.00021095,2]
[375819097,1753752673766,-169.60272768,0.00021095,2]
[375819098,1753752673776,-460.0,0.00021095,2]
[375819099,1753752673785,-460.0,0.00021095,2]
[375819100,1753752673795,-1365.02,0.00021095,2]
[375819101,1753752674018,-460.0,0.00021095,2]
[375819102,1753752674028,-460.0,0.00021095,2]
[375819103,1753752674039,-550.82,0.00021095,2]
[375819104,1753752674048,-393.29310321,0.00021095,2]
[375819105,1753752674058,-460.0,0.00021095,2]
[375819106,1753752674067,-460.0,0.00021095,2]
[375819107,1753752674076,-460.0,0.00021095,2]
[375819108,1753752674086,-411.5298994,0.00021095,2]
[375819109,1753752674097,-460.0,0.00021095,2]
[375819111,1753752674107,-460.0,0.00021095,2]
[375819112,1753752674117,-460.0,0.00021095,2]
[375819114,1753752674127,-785.64,0.00021095,2]
[375819116,1753752674136,-460.0,0.00021095,2]
[375819118,1753752674146,-1422.21,0.00021095,2]
[375819120,1753752674156,-460.0,0.00021095,2]
[375819122,1753752674166,-460.0,0.00021095,2]
[375819124,1753752674176,-460.0,0.00021095,2]
[375819126,1753752674186,-460.0,0.00021095,2]
[375819128,1753752674196,-460.0,0.00021095,2]
[375819130,1753752674205,-392.220438,0.00021095,2]
[375819132,1753752674215,-392.220438,0.00021095,2]
[375819134,1753752674226,-475.75,0.00021095,2]
[375819136,1753752674235,-460.0,0.00021095,2]
[375819138,1753752674246,-460.0,0.00021095,2]
[375819140,1753752674255,-460.0,0.00021095,2]
[375819142,1753752674265,-460.0,0.00021095,2]
[375819144,1753752674274,-460.0,0.00021095,2]
[375819145,1753752674284,-460.0,0.00021095,2]
[375819147,1753752674294,-460.0,0.00021095,2]
[375819149,1753752674304,-460.0,0.00021095,2]
[375819151,1753752674314,-859.76,0.00021095,2]
[375819153,1753752674323,-460.0,0.00021095,2]
[375819155,1753752674333,-460.0,0.00021095,2]
[375819157,1753752674343,-460.0,0.00021095,2]
[375819159,1753752674353,-574.93,0.00021095,2]
[375819161,1753752674362,-460.0,0.00021095,2]
[375819163,1753752674372,-460.0,0.00021095,2]
[375819165,1753752674382,-460.0,0.00021095,2]
[375819167,1753752674391,-460.0,0.00021095,2]
[375819169,1753752674401,-494.72,0.00021095,2]
[375819171,1753752674411,-460.0,0.00021095,2]
[375819173,1753752674421,-460.0,0.00021095,2]
[375819175,1753752674431,-151.0,0.00021095,2]
[375819177,1753752674440,-460.0,0.00021095,2]
[375819180,1753752674450,-460.0,0.00021095,2]
[375819182,1753752674466,-254.76777445,0.00021095,2]
[375819184,1753752674477,-460.0,0.00021095,2]
[375819186,1753752674487,-1711.97993234,0.00021095,2]
[375819212,1753752674751,-405.09006766,0.00021095,2]
[375819214,1753752674761,-460.0,0.00021095,2]
[375819216,1753752674771,-460.0,0.00021095,2]
[375819218,1753752674783,-460.0,0.00021095,2]
[375819220,1753752674792,-460.0,0.00021095,2]
[375819222,1753752674802,-491.92,0.00021095,2]
[375819224,1753752674812,-460.0,0.00021095,2]
[375819226,1753752674822,-460.0,0.00021095,2]
[375819228,1753752674832,-785.01,0.00021095,2]
[375819229,1753752674842,-460.0,0.00021095,2]
[375819231,1753752674852,-460.0,0.00021095,2]
[375819233,1753752674862,-460.0,0.00021095,2]
[375819235,1753752674873,-460.0,0.00021095,2]
[375819237,1753752674882,-460.0,0.00021095,2]
[375819239,1753752674892,-460.0,0.00021095,2]
[375819241,1753752674902,-460.0,0.00021095,2]
[375819243,1753752674912,-460.0,0.00021095,2]
[375819245,1753752674922,-460.0,0.00021095,2]
[375819247,1753752674934,-460.0,0.00021095,2]
[375819249,1753752674945,-720.65,0.00021095,2]
[375819251,1753752674954,-460.0,0.00021095,2]
[375819253,1753752674964,-460.0,0.00021095,2]
[375819255,1753752674974,-460.0,0.00021095,2]
[375819257,1753752674984,-460.0,0.00021095,2]
[375819259,1753752674994,-460.0,0.00021095,2]
[375819261,1753752675007,-460.0,0.00021095,2]
[375819263,1753752675017,-460.0,0.00021095,2]
[375819265,1753752675027,-460.0,0.00021095,2]
[375819267,1753752675037,-489.59,0.00021095,2]
[375819269,1753752675046,-569.47,0.00021095,2]
[375819271,1753752675055,-525.55,0.00021095,2]
[375819273,1753752675065,-582.58,0.00021095,2]
[375819275,1753752675074,-1270.5,0.00021095,2]
[375819277,1753752675084,-460.0,0.00021095,2]
[375819279,1753752675093,-586.58,0.00021095,2]
[375819281,1753752675103,-2436.08,0.00021095,2]
[375819283,1753752675112,-460.0,0.00021095,2]
[375819284,1753752675122,-460.0,0.00021095,2]
[375819286,1753752675131,-596.4,0.00021095,2]
[375819288,1753752675141,-455.24095248,0.00021095,2]
[375819290,1753752675150,-460.0,0.00021095,2]
[375819292,1753752675160,-460.0,0.00021095,2]
[375819294,1753752675170,-544.35,0.00021095,2]
[375819296,1753752675180,-590.38,0.00021095,2]
[375819298,1753752675190,-460.0,0.00021095,2]
[375819300,1753752675199,-520.82,0.00021095,2]
[375819302,1753752675209,-460.0,0.00021095,2]
[375819304,1753752675219,-2017.54,0.00021095,2]
[375819306,1753752675228,-460.0,0.00021095,2]
[375819308,1753752675238,-460.0,0.00021095,2]
[375819310,1753752675248,-460.0,0.00021095,2]
[375819312,1753752675259,-854.2,0.00021095,2]
[375819314,1753752675268,-522.16,0.00021095,2]
[375819316,1753752675278,-460.0,0.00021095,2]
[375819318,1753752675287,-460.0,0.00021095,2]
[375819320,1753752675297,-2860.37,0.00021095,2]
[375819322,1753752675307,-483.5,0.00021095,2]
[375819324,1753752675316,-460.0,0.00021095,2]
[375819326,1753752675326,-460.0,0.00021095,2]
[375819328,1753752675335,-460.0,0.00021095,2]
[375819330,1753752675345,-460.0,0.00021095,2]
[375819332,1753752675355,-460.0,0.00021095,2]
[375819334,1753752675364,-460.0,0.00021095,2]
[375819336,1753752675374,-460.0,0.00021095,2]
[375819338,1753752675384,-460.0,0.00021095,2]
[375819340,1753752675395,-637.4,0.00021095,2]
[375819342,1753752675406,-460.0,0.00021095,2]
[375819344,1753752675415,-591.09,0.00021095,2]
[375819346,1753752675425,-582.84,0.00021095,2]
[375819348,1753752675435,-2318.39,0.00021095,2]
[375819350,1753752675444,-460.0,0.00021095,2]
[375819352,1753752675454,-460.0,0.00021095,2]
[375819354,1753752675464,-596.83,0.00021095,2]
[375819356,1753752675474,-460.0,0.00021095,2]
[375819358,1753752675484,-460.0,0.00021095,2]
[375819360,1753752675494,-460.0,0.00021095,2]
[375819362,1753752675505,-460.0,0.00021095,2]
[375819364,1753752675515,-190.47388493,0.00021095,2]
[375819366,1753752675525,-969.39,0.00021095,2]
[375819368,1753752675534,-807.22,0.00021095,2]
[375819370,1753752675544,-1743.8,0.00021095,2]
[375819372,1753752675554,-1979.08,0.00021095,2]
[375819374,1753752675564,-5668.89,0.00021095,2]
[375819376,1753752675574,-6855.59,0.00021095,2]
[375819378,1753752675585,-577.15,0.00021095,2]
[375819380,1753752675595,-460.0,0.00021095,2]
[375819382,1753752675604,-460.0,0.00021095,2]
[375819384,1753752675614,-460.0,0.00021095,2]
[375819386,1753752675623,-606.45,0.00021095,2]
[375819388,1753752675633,-469.62,0.00021095,2]
[375819390,1753752675643,-460.0,0.00021095,2]
[375819392,1753752675653,-947.8,0.00021095,2]
[375819394,1753752675663,-492.89,0.00021095,2]
[375819396,1753752675672,-460.0,0.00021095,2]
[375819398,1753752675683,-460.0,0.00021095,2]
[375819400,1753752675693,-460.0,0.00021095,2]
[375819402,1753752675703,-2139.79,0.00021095,2]
[375819404,1753752675713,-460.0,0.00021095,2]
[375819406,1753752675722,-460.0,0.00021095,2]
[375819408,1753752675732,-515.36,0.00021095,2]
[375819410,1753752675742,-460.0,0.00021095,2]
[375819412,1753752675752,-757.1,0.00021095,2]
[375819414,1753752675761,-802.5,0.00021095,2]
[375819416,1753752675771,-460.0,0.00021095,2]
[375819418,1753752675780,-460.0,0.00021095,2]
[375819420,1753752675789,-460.0,0.00021095,2]
[375819422,1753752675799,-818.01,0.00021095,2]
[375819424,1753752675809,-460.0,0.00021095,2]
[375819426,1753752675818,-500.0,0.00021096,2]
[375819428,1753752675828,-404.74566212,0.00021116,2]
[375819430,1753752675838,-500.0,0.00021116,2]
[375819432,1753752675848,-4000.0,0.00021188,3]
[375819434,1753752675857,-200.0,0.00021255,15]
[375819436,1753752675867,-200.0,0.00021255,15]
[375819437,1753752675876,-200.0,0.00021255,15]
[375819439,1753752675885,-200.0,0.00021255,15]
[375819441,1753752675895,-320.0,0.00021255,15]
[375819444,1753752675905,-260.0,0.00021267,2]
[375819446,1753752675922,-3000.0,0.00021286,3]
[375819449,1753752675941,-3000.0,0.00021348,3]
[375819451,1753752675951,-427.1,0.00021353,4]
[375819453,1753752675961,-151.0,0.00021369,2]
[375819455,1753752675971,-151.0,0.00021369,2]
[375819457,1753752675982,-294.453064,0.00021369,2]
[375819459,1753752675992,-180.154628,0.00021369,2]
[375819461,1753752676003,-180.154628,0.00021369,2]
[375819463,1753752676014,-460.0,0.00021369,2]
[375819465,1753752676024,-151.80139244,0.00021369,2]
[375819467,1753752676034,-1968.01,0.00021369,2]
[375819469,1753752676043,-492.33,0.00021369,2]
[375819471,1753752676053,-460.0,0.00021369,2]
[375819473,1753752676062,-460.0,0.00021369,2]
[375819475,1753752676072,-460.0,0.00021369,2]
[375819477,1753752676082,-458.44885623,0.00021369,2]
[375819478,1753752676092,-1365.02,0.00021369,2]
[375819480,1753752676102,-460.0,0.00021369,2]
[375819482,1753752676111,-550.82,0.00021369,2]
[375819484,1753752676122,-460.0,0.00021369,2]
[375819486,1753752676131,-460.0,0.00021369,2]
[375819488,1753752676141,-476.66137774,0.00021369,2]
[375819490,1753752676151,-460.0,0.00021369,2]
[375819492,1753752676161,-460.0,0.00021369,2]
[375819494,1753752676171,-460.0,0.00021369,2]
[375819496,1753752676180,-785.64,0.00021369,2]
[375819498,1753752676190,-460.0,0.00021369,2]
[375819500,1753752676199,-151.0,0.00021369,2]
[375819502,1753752676210,-151.0,0.00021369,2]
[375819504,1753752676219,-1422.21,0.00021369,2]
[375819506,1753752676229,-460.0,0.00021369,2]
[375819508,1753752676239,-151.0,0.00021369,2]
[375819510,1753752676249,-460.0,0.00021369,2]
[375819512,1753752676259,-460.0,0.00021369,2]
[375819514,1753752676268,-151.0,0.00021369,2]
[375819516,1753752676278,-475.75,0.00021369,2]
[375819518,1753752676287,-460.0,0.00021369,2]
[375819520,1753752676297,-460.0,0.00021369,2]
[375819522,1753752676307,-460.0,0.00021369,2]
[375819524,1753752676317,-151.0,0.00021369,2]
[375819526,1753752676327,-151.0,0.00021369,2]
[375819528,1753752676337,-151.0,0.00021369,2]
[375819530,1753752676346,-460.0,0.00021369,2]
[375819532,1753752676355,-460.0,0.00021369,2]
[375819534,1753752676365,-460.0,0.00021369,2]
[375819536,1753752676375,-546.48811548,0.00021369,2]
[375819538,1753752676384,-859.76,0.00021369,2]
[375819540,1753752676394,-358.90505562,0.00021369,2]
[375819542,1753752676404,-460.0,0.00021369,2]
[375819544,1753752676415,-574.93,0.00021369,2]
[375819546,1753752676425,-460.0,0.00021369,2]
[375819548,1753752676435,-185.638173,0.00021369,2]
[375819550,1753752676444,-185.638173,0.00021369,2]
[375819552,1753752676454,-460.0,0.00021369,2]
[375819554,1753752676464,-460.0,0.00021369,2]
[375819556,1753752676473,-494.72,0.00021369,2]
[375819558,1753752676484,-460.0,0.00021369,2]
[375819560,1753752676494,-460.0,0.00021369,2]
[375819562,1753752676505,-460.0,0.00021369,2]
[375819564,1753752676514,-460.0,0.00021369,2]
[375819566,1753752676524,-460.0,0.00021369,2]
[375819568,1753752676534,-2117.07,0.00021369,2]
[375819570,1753752676549,-460.0,0.00021369,2]
[375819572,1753752676559,-460.0,0.00021369,2]
[375819573,1753752676569,-252.22672606,0.00021369,2]
[375819574,1753752676580,-491.92,0.00021369,2]
[375819575,1753752676590,-151.0,0.00021369,2]
[375819576,1753752676601,-460.0,0.00021369,2]
[375819577,1753752676611,-460.0,0.00021369,2]
[375819578,1753752676621,-785.01,0.00021369,2]
[375819579,1753752676631,-460.0,0.00021369,2]
[375819580,1753752676641,-460.0,0.00021369,2]
[375819581,1753752676651,-460.0,0.00021369,2]
[375819583,1753752676662,-460.0,0.00021369,2]
[375819585,1753752676672,-460.0,0.00021369,2]
[375819611,1753752676910,-460.0,0.00021369,2]
[375819613,1753752676921,-460.0,0.00021369,2]
[375819615,1753752676933,-212.28949371,0.00021369,2]
[375819617,1753752676943,-460.0,0.00021369,2]
[375819619,1753752676952,-720.65,0.00021369,2]
[375819621,1753752676963,-460.0,0.00021369,2]
[375819623,1753752676974,-460.0,0.00021369,2]
[375819625,1753752676983,-460.0,0.00021369,2]
[375819627,1753752676994,-460.0,0.00021369,2]
[375819629,1753752677005,-460.0,0.00021369,2]
[375819631,1753752677016,-460.0,0.00021369,2]
[375819633,1753752677026,-429.9992446,0.00021369,2]
[375819635,1753752677036,-489.59,0.00021369,2]
[375819637,1753752677046,-569.47,0.00021369,2]
[375819639,1753752677056,-151.0,0.00021369,2]
[375819641,1753752677066,-525.55,0.00021369,2]
[375819643,1753752677075,-582.58,0.00021369,2]
[375819645,1753752677085,-1270.5,0.00021369,2]
[375819647,1753752677095,-460.0,0.00021369,2]
[375819649,1753752677106,-586.58,0.00021369,2]
[375819651,1753752677116,-2436.08,0.00021369,2]
[375819653,1753752677125,-460.0,0.00021369,2]
[375819655,1753752677135,-460.0,0.00021369,2]
[375819657,1753752677145,-596.4,0.00021369,2]
[375819659,1753752677154,-460.0,0.00021369,2]
[375819661,1753752677164,-460.0,0.00021369,2]
[375819663,1753752677174,-544.35,0.00021369,2]
[375819665,1753752677185,-590.38,0.00021369,2]
[375819667,1753752677194,-460.0,0.00021369,2]
[375819669,1753752677204,-520.82,0.00021369,2]
[375819671,1753752677214,-460.0,0.00021369,2]
[375819673,1753752677224,-2017.54,0.00021369,2]
[375819676,1753752677235,-460.0,0.00021369,2]
[375819677,1753752677245,-460.0,0.00021369,2]
[375819679,1753752677255,-460.0,0.00021369,2]
[375819681,1753752677265,-854.2,0.00021369,2]
[375819683,1753752677275,-151.0,0.00021369,2]
[375819685,1753752677284,-522.16,0.00021369,2]
[375819687,1753752677294,-460.0,0.00021369,2]
[375819690,1753752677303,-151.0,0.00021369,2]
[375819692,1753752677314,-460.0,0.00021369,2]
[375819694,1753752677324,-2860.37,0.00021369,2]
[375819696,1753752677334,-483.5,0.00021369,2]
[375819698,1753752677344,-460.0,0.00021369,2]
[375819700,1753752677354,-460.0,0.00021369,2]
[375819702,1753752677364,-460.0,0.00021369,2]
[375819704,1753752677374,-460.0,0.00021369,2]
[375819706,1753752677383,-460.0,0.00021369,2]
[375819708,1753752677394,-460.0,0.00021369,2]
[375819710,1753752677404,-460.0,0.00021369,2]
[375819712,1753752677414,-637.4,0.00021369,2]
[375819713,1753752677423,-473.62570198,0.00021369,2]
[375819715,1753752677434,-591.09,0.00021369,2]
[375819717,1753752677444,-582.84,0.00021369,2]
[375819719,1753752677455,-2318.39,0.00021369,2]
[375819721,1753752677465,-230.251478,0.00021369,2]
[375819723,1753752677475,-460.0,0.00021369,2]
[375819725,1753752677486,-460.0,0.00021369,2]
[375819727,1753752677497,-230.251478,0.00021369,2]
[375819729,1753752677508,-596.83,0.00021369,2]
[375819732,1753752677518,-460.0,0.00021369,2]
[375819734,1753752677529,-460.0,0.00021369,2]
[375819736,1753752677539,-460.0,0.00021369,2]
[375819738,1753752677549,-460.0,0.00021369,2]
[375819740,1753752677560,-969.39,0.00021369,2]
[375819742,1753752677570,-807.22,0.00021369,2]
[375819744,1753752677580,-1743.8,0.00021369,2]
[375819746,1753752677590,-1979.08,0.00021369,2]
[375819748,1753752677601,-5668.89,0.00021369,2]
[375819750,1753752677613,-6855.59,0.00021369,2]
[375819752,1753752677624,-577.15,0.00021369,2]
[375819754,1753752677634,-460.0,0.00021369,2]
[375819756,1753752677644,-460.0,0.00021369,2]
[375819758,1753752677654,-606.45,0.00021369,2]
[375819760,1753752677664,-469.62,0.00021369,2]
[375819762,1753752677675,-947.8,0.00021369,2]
[375819764,1753752677684,-492.89,0.00021369,2]
[375819766,1753752677693,-460.0,0.00021369,2]
[375819768,1753752677705,-467.09061256,0.00021369,2]
[375819770,1753752677715,-460.0,0.00021369,2]
[375819772,1753752677725,-460.0,0.00021369,2]
[375819774,1753752677734,-2139.79,0.00021369,2]
[375819776,1753752677744,-468.93859922,0.00021369,2]
[375819778,1753752677754,-515.36,0.00021369,2]
[375819780,1753752677764,-460.0,0.00021369,2]
[375819782,1753752677774,-757.1,0.00021369,2]
[375819784,1753752677784,-802.5,0.00021369,2]
[375819786,1753752677794,-460.0,0.00021369,2]
[375819788,1753752677804,-460.0,0.00021369,2]
[375819790,1753752677815,-460.0,0.00021369,2]
[375819792,1753752677825,-818.01,0.00021369,2]
[375819794,1753752677834,-460.0,0.00021369,2]
[375819796,1753752677843,-500.0,0.0002137,2]
[375819798,1753752677853,-3000.0,0.00021452,3]
[375819800,1753752677863,-995.63460715,0.000215,2]
[375819802,1753752677872,-798.96,0.000215,2]
[375819804,1753752677882,-275.77658133,0.00021577,2]
[375819806,1753752677891,-873.051,0.00021632,2]
[375819808,1753752677901,-155.0,0.00021634,2]
[375819810,1753752677910,-151.0,0.00021643,2]
[375819812,1753752677920,-460.0,0.00021643,2]
[375819814,1753752677931,-151.0,0.00021643,2]
[375819816,1753752677942,-151.0,0.00021643,2]
[375819818,1753752677952,-1968.01,0.00021643,2]
[375819820,1753752677962,-492.33,0.00021643,2]
[375819822,1753752677971,-460.0,0.00021643,2]
[375819824,1753752677981,-197.98413322,0.00021643,2]
[375819826,1753752677990,-460.0,0.00021643,2]
[375819828,1753752678000,-1365.02,0.00021643,2]
[375819830,1753752678019,-316.71,0.00021643,2]
[375819832,1753752678032,-550.82,0.00021643,2]
[375819834,1753752678042,-460.0,0.00021643,2]
[375819836,1753752678052,-460.0,0.00021643,2]
[375819838,1753752678061,-460.0,0.00021643,2]
[375819840,1753752678071,-460.0,0.00021643,2]
[375819842,1753752678080,-785.64,0.00021643,2]
[375819844,1753752678090,-270.58726995,0.00021643,2]
[375819846,1753752678100,-1422.21,0.00021643,2]
[375819848,1753752678109,-355.95173932,0.00021643,2]
[375819850,1753752678119,-460.0,0.00021643,2]
[375819852,1753752678129,-475.75,0.00021643,2]
[375819854,1753752678138,-460.0,0.00021643,2]
[375819856,1753752678148,-460.0,0.00021643,2]
[375819858,1753752678157,-460.0,0.00021643,2]
[375819860,1753752678167,-460.0,0.00021643,2]
[375819862,1753752678177,-460.0,0.00021643,2]
[375819864,1753752678187,-460.0,0.00021643,2]
[375819865,1753752678196,-859.76,0.00021643,2]
[375819867,1753752678206,-460.0,0.00021643,2]
[375819869,1753752678216,-574.93,0.00021643,2]
[375819871,1753752678225,-563.12805676,0.00021643,2]
[375819873,1753752678235,-460.0,0.00021643,2]
[375819875,1753752678244,-460.0,0.00021643,2]
[375819877,1753752678255,-494.72,0.00021643,2]
[375819879,1753752678264,-460.0,0.00021643,2]
[375819881,1753752678274,-460.0,0.00021643,2]
[375819883,1753752678283,-460.0,0.00021643,2]
[375819885,1753752678293,-180.11677036,0.00021643,2]
[375819887,1753752678302,-2117.07,0.00021643,2]
[375819889,1753752678312,-460.0,0.00021643,2]
[375819891,1753752678322,-151.0,0.00021643,2]
[375819893,1753752678332,-491.92,0.00021643,2]
[375819895,1753752678341,-460.0,0.00021643,2]
[375819897,1753752678351,-460.0,0.00021643,2]
[375819899,1753752678360,-785.01,0.00021643,2]
[375819901,1753752678370,-460.0,0.00021643,2]
[375819903,1753752678379,-460.0,0.00021643,2]
[375819905,1753752678389,-460.0,0.00021643,2]
[375819907,1753752678399,-460.0,0.00021643,2]
[375819909,1753752678408,-460.0,0.00021643,2]
[375819911,1753752678418,-460.0,0.00021643,2]
[375819913,1753752678428,-460.0,0.00021643,2]
[375819915,1753752678438,-229.03170315,0.00021643,2]
[375819917,1753752678448,-720.65,0.00021643,2]
[375819919,1753752678458,-531.02290725,0.00021643,2]
[375819921,1753752678468,-460.0,0.00021643,2]
[375819923,1753752678477,-460.0,0.00021643,2]
[375819925,1753752678487,-460.0,0.00021643,2]
[375819927,1753752678497,-460.0,0.00021643,2]
[375819929,1753752678507,-460.0,0.00021643,2]
[375819931,1753752678517,-489.59,0.00021643,2]
[375819933,1753752678527,-569.47,0.00021643,2]
[375819935,1753752678536,-525.55,0.00021643,2]
[375819937,1753752678547,-582.58,0.00021643,2]
[375819939,1753752678556,-1270.5,0.00021643,2]
[375819941,1753752678566,-586.58,0.00021643,2]
[375819943,1753752678576,-2436.08,0.00021643,2]
[375819945,1753752678586,-460.0,0.00021643,2]
[375819946,1753752678596,-460.0,0.00021643,2]
[375819948,1753752678606,-596.4,0.00021643,2]
[375819951,1753752678616,-460.0,0.00021643,2]
[375819952,1753752678627,-460.0,0.00021643,2]
[375819954,1753752678636,-544.35,0.00021643,2]
[375819956,1753752678646,-590.38,0.00021643,2]
[375819958,1753752678656,-460.0,0.00021643,2]
[375819960,1753752678666,-520.82,0.00021643,2]
[375819962,1753752678676,-472.9226879,0.00021643,2]
[375819964,1753752678686,-2017.54,0.00021643,2]
[375819966,1753752678695,-460.0,0.00021643,2]
[375819968,1753752678705,-460.0,0.00021643,2]
[375819970,1753752678715,-460.0,0.00021643,2]
[375819972,1753752678725,-854.2,0.00021643,2]
[375819974,1753752678735,-522.16,0.00021643,2]
[375819976,1753752678745,-460.0,0.00021643,2]
[375819978,1753752678756,-460.0,0.00021643,2]
[375819980,1753752678766,-2860.37,0.00021643,2]
[375819982,1753752678776,-483.5,0.00021643,2]
[375819984,1753752678786,-460.0,0.00021643,2]
[375819986,1753752678801,-460.0,0.00021643,2]
[375819988,1753752678812,-227.26016284,0.00021643,2]
[375819990,1753752678822,-460.0,0.00021643,2]
[375819992,1753752678832,-460.0,0.00021643,2]
[375819994,1753752678841,-460.0,0.00021643,2]
[375819996,1753752678851,-460.0,0.00021643,2]
[375819998,1753752678861,-637.4,0.00021643,2]
[375820000,1753752678870,-591.09,0.00021643,2]
[375820002,1753752678880,-582.84,0.00021643,2]
[375820004,1753752678890,-2318.39,0.00021643,2]
[375820006,1753752678900,-460.0,0.00021643,2]
[375820008,1753752678910,-596.83,0.00021643,2]
[375820010,1753752678920,-460.0,0.00021643,2]
[375820012,1753752678934,-460.0,0.00021643,2]
[375820014,1753752678951,-460.0,0.00021643,2]
[375820016,1753752678961,-460.0,0.00021643,2]
[375820018,1753752678971,-969.39,0.00021643,2]
[375820020,1753752678980,-807.22,0.00021643,2]
[375820022,1753752678990,-1743.8,0.00021643,2]
[375820024,1753752679000,-1979.08,0.00021643,2]
[375820026,1753752679010,-6855.59,0.00021643,2]
[375820028,1753752679019,-577.15,0.00021643,2]
[375820030,1753752679028,-5668.89,0.00021643,2]
[375820032,1753752679038,-460.0,0.00021643,2]
[375820034,1753752679047,-460.0,0.00021643,2]
[375820036,1753752679057,-606.45,0.00021643,2]
[375820038,1753752679066,-469.62,0.00021643,2]
[375820040,1753752679076,-947.8,0.00021643,2]
[375820042,1753752679086,-151.0,0.00021643,2]
[375820044,1753752679096,-492.89,0.00021643,2]
[375820046,1753752679108,-460.0,0.00021643,2]
[375820048,1753752679118,-481.85508871,0.00021643,2]
[375820050,1753752679128,-460.0,0.00021643,2]
[375820052,1753752679137,-2139.79,0.00021643,2]
[375820054,1753752679147,-267.336701,0.00021643,2]
[375820056,1753752679158,-515.36,0.00021643,2]
[375820058,1753752679168,-460.0,0.00021643,2]
[375820060,1753752679178,-757.1,0.00021643,2]
[375820062,1753752679187,-610.348551,0.00021643,2]
[375820064,1753752679198,-267.336701,0.00021643,2]
[375820066,1753752679207,-802.5,0.00021643,2]
[375820068,1753752679218,-610.348551,0.00021643,2]
[375820070,1753752679227,-460.0,0.00021643,2]
[375820072,1753752679237,-151.0,0.00021643,2]
[375820074,1753752679247,-154.111085,0.00021643,2]
[375820076,1753752679257,-205.13587426,0.00021643,2]
[375820078,1753752679268,-469.60778712,0.00021643,2]
[375820080,1753752679277,-818.01,0.00021643,2]
[375820082,1753752679287,-460.0,0.00021643,2]
[375820084,1753752679296,-500.0,0.00021644,2]
[375820086,1753752679305,-427.1,0.00021804,4]
[375820088,1753752679315,-167.05403903,0.00021815,2]
[375820090,1753752679324,-151.0,0.000219,2]
[375820092,1753752679334,-151.0,0.00021917,2]
[375820094,1753752679344,-151.0,0.00021917,2]
[375820096,1753752679353,-151.0,0.00021917,2]
[375820098,1753752679364,-460.0,0.00021917,2]
[375820100,1753752679373,-1968.01,0.00021917,2]
[375820102,1753752679383,-151.0,0.00021917,2]
[375820104,1753752679392,-492.33,0.00021917,2]
[375820106,1753752679401,-460.0,0.00021917,2]
[375820108,1753752679411,-151.0,0.00021917,2]